bitfinex/quotes_SOLUSD_20250525
["timestamp","ask_amount","ask_price","bid_price","bid_amount"]
[1748165869091,35.14363534,171.0,170.96,35.06]
[1748165869292,20.38861043,171.07,170.96,35.06]
[1748165869293,35.14363534,171.01,170.96,35.06]
[1748165870016,35.14363534,170.99,170.96,35.06]
[1748165870204,35.14363534,170.98,170.96,35.06]
[1748165872319,44.79181043,171.04,170.96,35.06]
[1748165872494,35.14363534,170.98,170.96,35.06]
[1748165873526,35.14363534,170.97,170.92,26.0]
[1748165873818,35.14363534,170.96,170.93,35.04]
[1748165874525,1.5968,171.07,170.93,35.04]
[1748165874526,35.14363534,170.98,170.93,35.04]
[1748165874721,35.14363534,170.97,170.93,35.04]
[1748165877035,35.14363534,170.96,170.93,35.04]
[1748165877625,35.14363534,170.96,170.94,125.44]
[1748165878200,35.14363534,170.95,170.94,125.44]
[1748165878400,35.14363534,170.95,170.94,160.46]
[1748165878708,35.14363534,170.95,170.94,76.4]
[1748165880432,35.14363534,170.96,170.94,76.4]
[1748165880727,35.14363534,170.95,170.94,76.4]
[1748165881536,35.14363534,170.96,170.94,76.4]
[1748165881712,35.14363534,170.95,170.94,41.38]
[1748165881912,35.14363534,170.95,170.94,76.4]
[1748165882317,35.14363534,170.95,170.94,41.38]
[1748165882523,35.14363534,170.95,170.94,76.4]
[1748165882722,53.93544577,170.95,170.94,41.38]
[1748165882901,53.93544577,170.95,170.94,76.4]
[1748165883107,53.93544577,170.95,170.94,41.38]
[1748165883331,53.93544577,170.95,170.94,76.4]
[1748165884126,26.0,170.91,170.84,82.9]
[1748165884332,35.14363534,170.87,170.82,88.9145]
[1748165884715,35.14363534,170.87,170.82,82.9]
[1748165885115,35.14363534,170.9,170.82,219.1]
[1748165885311,35.14363534,170.92,170.83,35.16216157]
[1748165885506,35.14363534,170.92,170.84,26.0]
[1748165885730,26.0,170.96,170.84,26.0]
[1748165885930,35.14363534,170.91,170.84,245.1]
[1748165886445,35.14363534,170.92,170.84,245.1]
[1748165887642,35.14363534,170.92,170.85,125.44]
[1748165888228,26.0,170.96,170.85,125.44]
[1748165888432,35.14363534,170.94,170.85,344.54]
[1748165888635,35.14363534,170.92,170.85,344.54]
[1748165890338,35.14363534,170.93,170.85,344.54]
[1748165890734,35.14363534,170.93,170.85,260.48]
[1748165891114,35.14363534,170.92,170.85,260.48]
[1748165893431,35.14363534,170.93,170.85,82.9]
[1748165893632,21.91616733,170.93,170.85,219.1]
[1748165894222,21.91616733,170.98,170.9,26.0]
[1748165894434,21.91616733,171.0,170.91,35.04]
[1748165894946,21.91616733,170.97,170.91,35.04]
[1748165895318,21.91616733,170.99,170.91,35.04]
[1748165895534,21.91616733,171.0,170.91,35.04]
[1748165895926,21.91616733,170.98,170.91,35.04]
[1748165896613,21.91616733,170.95,170.92,35.04]
[1748165897168,21.91616733,170.93,170.87,6.0122]
[1748165897324,21.91616733,170.9,170.88,35.04]
[1748165897646,0.14216157,170.96,170.89,125.44]
[1748165897828,35.08157798,170.9,170.89,125.44]
[1748165899948,35.08157798,170.9,170.89,41.38]
[1748165901550,35.08157798,170.9,170.89,35.02]
[1748165904036,35.08157798,170.92,170.89,35.02]
[1748165904238,35.08157798,170.91,170.89,35.02]
[1748165905631,1.6197,170.93,170.89,35.02]
[1748165905955,35.08157798,170.91,170.89,35.02]
[1748165906452,35.08157798,170.9,170.89,35.02]
[1748165907545,35.08157798,170.9,170.89,159.54]
[1748165912657,0.14216157,170.95,170.89,75.48]
[1748165912866,35.08157798,170.91,170.89,75.48]
[1748165913157,35.08157798,170.92,170.89,35.02]
[1748165913538,6.0812,170.96,170.89,35.02]
[1748165913753,35.07188113,170.92,170.89,35.02]
[1748165914361,35.07188113,170.91,170.89,35.02]
[1748165915361,35.07188113,170.92,170.89,35.02]
[1748165915664,35.07188113,170.91,170.89,35.02]
[1748165915863,35.07188113,170.92,170.89,35.02]
[1748165916541,35.07188113,170.93,170.89,35.02]
[1748165916737,35.07188113,170.93,170.89,117.92]
[1748165917148,35.07188113,170.94,170.89,117.92]
[1748165917538,35.07188113,170.94,170.9,124.54]
[1748165917734,35.07188113,170.94,170.9,207.44]
[1748165917938,27.5156,170.98,170.9,207.44]
[1748165918347,35.07188113,170.95,170.9,207.44]
[1748165919565,35.07188113,170.93,170.9,207.44]
[1748165919778,21.91860911,170.91,170.9,84.08]
[1748165919945,21.91860911,170.91,170.9,159.58]
[1748165921269,26.0,170.95,170.9,159.58]
[1748165921472,21.91860911,170.92,170.9,159.58]
[1748165922068,21.91860911,170.93,170.9,159.58]
[1748165923172,21.91860911,170.93,170.9,242.48]
[1748165924683,21.91860911,170.92,170.9,242.48]
[1748165925964,21.91860911,170.91,170.9,242.48]
[1748165926474,21.91860911,170.91,170.9,158.4]
[1748165927376,21.91860911,170.92,170.9,158.4]
[1748165927573,21.91860911,170.92,170.91,84.08]
[1748165930073,21.91860911,170.92,170.91,119.12]
[1748165930578,18.79181043,170.96,170.91,119.12]
[1748165930763,21.91860911,170.92,170.91,119.12]
[1748165931169,1.5156,170.98,170.91,202.02]
[1748165931357,21.91860911,170.97,170.92,21.91860911]
[1748165931675,21.91860911,170.97,170.91,360.13860911]
[1748165931862,21.91860911,170.97,170.92,82.9]
[1748165932978,21.91860911,170.98,170.92,241.01860911]
[1748165933178,21.91860911,170.97,170.92,241.01860911]
[1748165933384,21.91860911,170.97,170.92,82.9]
[1748165933874,21.91860911,170.96,170.92,82.9]
[1748165934072,21.91860911,170.94,170.91,117.94]
[1748165934780,0.14216157,170.99,170.91,117.94]
[1748165934972,21.91860911,170.94,170.91,117.94]
[1748165935464,21.91860911,170.95,170.91,117.94]
[1748165935779,18.79181043,170.99,170.91,117.94]
[1748165935958,21.91860911,170.95,170.91,117.94]
[1748165936589,21.91860911,170.94,170.91,117.94]
[1748165937090,21.91860911,170.95,170.91,117.94]
[1748165937284,21.91860911,170.96,170.91,117.94]
[1748165937493,21.91860911,170.96,170.92,123.86]
[1748165937692,21.91860911,170.95,170.92,123.86]
[1748165938480,18.79181043,171.01,170.92,206.76]
[1748165938688,21.91860911,170.97,170.92,206.76]
[1748165938861,21.91860911,170.96,170.92,206.76]
[1748165939179,18.79181043,171.01,170.92,206.76]
[1748165939357,21.91860911,170.97,170.92,206.76]
[1748165940485,21.91860911,170.97,170.92,228.67860911]
[1748165940992,21.91860911,170.96,170.92,206.76]
[1748165941170,21.91860911,170.95,170.92,206.76]
[1748165941478,21.91860911,170.95,170.93,35.02]
[1748165942205,21.91860911,170.94,170.93,35.02]
[1748165942575,21.91860911,170.95,170.93,35.02]
[1748165943084,21.91860911,170.96,170.93,35.02]
[1748165944610,21.91860911,170.94,170.89,82.9]
[1748165944762,21.91860911,170.9,170.86,82.9]
[1748165945077,21.91860911,170.88,170.87,35.02]
[1748165945276,21.91860911,170.89,170.87,35.02]
[1748165946097,21.91860911,170.88,170.87,35.02]
[1748165946601,21.91860911,170.89,170.87,35.02]
[1748165947476,21.91860911,170.89,170.88,123.86]
[1748165947989,21.91860911,170.89,170.88,158.88]
[1748165949385,21.91860911,170.89,170.88,123.86]
[1748165949729,40.71041954,170.89,170.88,158.9]
[1748165950894,66.71041954,170.89,170.88,123.86]
[1748165951111,68.32751954,170.89,170.88,123.86]
[1748165951280,68.32751954,170.89,170.88,158.9]
[1748165951678,42.32751954,170.89,170.88,158.9]
[1748165952097,26.0,170.91,170.88,158.9]
[1748165952284,20.26674886,170.93,170.88,158.9]
[1748165952479,21.91860911,170.91,170.88,158.9]
[1748165953171,21.91860911,170.92,170.88,241.8]
[1748165953694,18.64964886,170.96,170.88,241.8]
[1748165953885,21.91860911,170.93,170.88,241.8]
[1748165954086,21.91860911,170.92,170.88,241.8]
[1748165954481,21.91860911,170.9,170.88,158.9]
[1748165954802,0.14216157,170.95,170.88,158.9]
[1748165955003,21.91860911,170.91,170.88,158.9]
[1748165955712,21.91860911,170.9,170.88,158.9]
[1748165956412,26.14216157,170.95,170.88,158.9]
[1748165956571,21.91860911,170.9,170.88,158.9]
[1748165958202,21.91860911,170.91,170.88,158.9]
[1748165958499,21.91860911,170.92,170.88,158.9]
[1748165958701,21.91860911,170.9,170.88,158.9]
[1748165958885,21.91860911,170.89,170.88,241.8]
[1748165959079,42.29911954,170.89,170.88,84.06]
[1748165959285,42.29911954,170.89,170.88,158.9]
[1748165960381,20.38051043,170.89,170.88,158.9]
[1748165960698,42.15695797,170.89,170.88,158.9]
[1748165961211,20.23834886,170.89,170.88,158.9]
[1748165961517,42.29911954,170.89,170.88,158.9]
[1748165962918,20.38051043,170.89,170.88,158.9]
[1748165963089,42.29911954,170.89,170.88,158.9]
[1748165964410,42.29911954,170.89,170.88,123.86]
[1748165964616,0.14216157,170.88,170.8,82.9]
[1748165964903,21.91860911,170.82,170.81,75.3]
[1748165965112,21.91860911,170.82,170.81,158.2]
[1748165967609,21.91860911,170.82,170.81,242.3]
[1748165969717,21.91860911,170.82,170.81,159.4]
[1748165970514,21.91860911,170.82,170.81,124.36]
[1748165970725,21.91860911,170.82,170.81,159.4]
[1748165971024,21.91860911,170.83,170.81,159.4]
[1748165972689,40.56825797,170.82,170.81,124.36]
[1748165972888,40.56825797,170.82,170.81,159.4]
[1748165973083,40.71041954,170.82,170.81,124.36]
[1748165973285,40.71041954,170.82,170.81,159.4]
[1748165973990,0.14216157,170.81,170.77,82.9]
[1748165974318,21.91860911,170.8,170.78,40.26]
[1748165975295,40.56825797,170.8,170.79,35.04]
[1748165975611,62.62902865,170.8,170.79,35.04]
[1748165976111,62.62902865,170.8,170.79,35.06]
[1748165976320,18.79181043,170.79,170.78,40.26]
[1748165976613,40.71041954,170.79,170.78,40.26]
[1748165977223,40.71041954,170.79,170.74,82.9]
[1748165977420,21.91860911,170.75,170.68,108.9]
[1748165977605,21.91860911,170.7,170.69,159.46]
[1748165978116,21.91860911,170.7,170.69,75.34]
[1748165978301,21.91860911,170.7,170.68,108.9]
[1748165978506,21.91860911,170.7,170.69,35.06]
[1748165979611,21.91860911,170.71,170.69,117.96]
[1748165980406,21.91860911,170.72,170.69,117.96]
[1748165981110,1.5305,170.82,170.69,139.87860911]
[1748165981300,1.5305,170.82,170.72,21.91860911]
[1748165981501,21.91860911,170.78,170.73,35.06]
[1748165981698,21.91860911,170.78,170.73,117.96]
[1748165982829,21.91860911,170.79,170.73,282.13120911]
[1748165982994,18.79181043,170.84,170.74,23.44710911]
[1748165983200,21.91860911,170.79,170.74,84.4285]
[1748165983623,18.79181043,170.84,170.74,84.4285]
[1748165983827,21.91860911,170.79,170.74,106.34710911]
[1748165984130,21.91860911,170.78,170.74,84.4285]
[1748165985525,18.79181043,170.84,170.74,84.4285]
[1748165985526,21.91860911,170.79,170.74,84.4285]
[1748165986024,21.91860911,170.78,170.74,84.4285]
[1748165986207,21.91860911,170.78,170.74,1.5285]
[1748165986724,18.79181043,170.84,170.74,1.5285]
[1748165986932,21.91860911,170.79,170.74,1.5285]
[1748165987251,21.91860911,170.79,170.74,23.44710911]
[1748165987537,21.91860911,170.79,170.75,124.42]
[1748165988708,18.79181043,170.86,170.75,124.42]
[1748165989017,21.91860911,170.79,170.76,35.06]
[1748165990026,21.91860911,170.78,170.76,35.06]
[1748165990237,21.91860911,170.79,170.76,35.06]
[1748165991236,18.79181043,170.86,170.76,35.06]
[1748165991407,21.91860911,170.85,170.79,47.91860911]
[1748165991609,21.91860911,170.86,170.8,56.97860911]
[1748165991927,21.91860911,170.87,170.82,21.91860911]
[1748165992429,21.91860911,170.86,170.81,6.3198]
[1748165994514,21.91860911,170.86,170.81,28.23840911]
[1748165994727,21.91860911,170.86,170.81,6.3198]
[1748165995029,21.91860911,170.9,170.8,254.16]
[1748165995224,21.91860911,170.81,170.76,82.9]
[1748165995422,1.6616,170.84,170.77,35.06]
[1748165995631,21.91860911,170.78,170.77,35.06]
[1748165996332,1.6616,170.84,170.77,35.06]
[1748165996935,21.91860911,170.8,170.77,35.06]
[1748165997137,21.91860911,170.78,170.77,35.06]
[1748165997434,18.79181043,170.85,170.77,35.06]
[1748165997629,21.91860911,170.8,170.77,158.94]
[1748165997830,21.91860911,170.8,170.77,74.82]
[1748165998932,18.79181043,170.85,170.77,74.82]
[1748165999135,21.91860911,170.78,170.74,82.9]
[1748165999325,21.91860911,170.75,170.71,82.9]
[1748165999519,21.91860911,170.75,170.72,35.06]
[1748166000121,21.91860911,170.74,170.71,82.9]
[1748166000322,21.91860911,170.73,170.71,82.9]
[1748166000641,21.91860911,170.73,170.69,168.5198]
[1748166000817,21.91860911,170.73,170.72,35.06]
[1748166001417,21.91860911,170.73,170.69,168.5198]
[1748166001617,21.91860911,170.72,170.7,35.06]
[1748166003028,21.91860911,170.71,170.7,35.06]
[1748166003617,21.91860911,170.72,170.7,35.06]
[1748166004157,23.56520911,170.8,170.71,21.91860911]
[1748166004158,1.6466,170.8,170.71,21.91860911]
[1748166004339,21.91860911,170.77,170.71,21.91860911]
[1748166004520,21.91860911,170.75,170.7,56.97860911]
[1748166005649,35.13206513,170.75,170.7,70.19206513]
[1748166005851,1.6466,170.8,170.7,70.19206513]
[1748166006023,35.13206513,170.77,170.71,35.13206513]
[1748166006224,1.6466,170.8,170.7,35.06]
[1748166006225,35.13206513,170.72,170.7,35.06]
[1748166006443,35.13206513,170.71,170.7,35.06]
[1748166006742,35.13206513,170.74,170.7,35.06]
[1748166007332,35.13206513,170.73,170.7,35.06]
[1748166007543,35.13206511,170.73,170.71,126.02]
[1748166007843,35.13206511,170.73,170.71,208.92]
[1748166008147,35.13206513,170.72,170.71,208.92]
[1748166008343,20.43841043,170.8,170.71,208.92]
[1748166008642,35.13206513,170.73,170.71,208.92]
[1748166008825,35.13206513,170.73,170.71,124.78]
[1748166009020,35.13206513,170.72,170.71,124.78]
[1748166009226,36.65196513,170.72,170.71,41.88]
[1748166009428,36.65196513,170.72,170.71,76.94]
[1748166009429,55.44377556,170.72,170.71,76.94]
[1748166010029,1.5199,170.72,170.71,76.94]
[1748166010230,36.65196513,170.72,170.71,76.94]
[1748166010433,1.5199,170.72,170.71,76.94]
[1748166010637,36.65196513,170.72,170.71,76.94]
[1748166011046,35.13206513,170.73,170.71,76.94]
[1748166011260,26.0,170.76,170.71,76.94]
[1748166011261,35.13206513,170.72,170.71,41.88]
[1748166011426,53.92387556,170.72,170.71,76.94]
[1748166011626,35.13206513,170.72,170.71,76.94]
[1748166012248,18.79181043,170.74,170.71,76.94]
[1748166012441,35.13206513,170.72,170.71,76.94]
[1748166013431,35.13206513,170.73,170.71,76.94]
[1748166014654,35.13206513,170.74,170.71,76.94]
[1748166015029,35.13206513,170.75,170.71,159.84]
[1748166015225,35.13206513,170.75,170.71,117.96]
[1748166015856,18.79181043,170.8,170.71,117.96]
[1748166015857,35.13206513,170.77,170.71,70.19206513]
[1748166016054,35.13206513,170.76,170.71,35.06]
[1748166016265,35.13206513,170.74,170.71,35.06]
[1748166016630,35.13206513,170.73,170.71,35.06]
[1748166016834,35.13206513,170.74,170.71,35.06]
[1748166017643,35.13206513,170.74,170.72,126.06]
[1748166017842,35.13206513,170.75,170.72,126.06]
[1748166018654,18.79181043,170.8,170.72,126.06]
[1748166018655,35.13206513,170.76,170.72,126.06]
[1748166018844,44.79181043,170.8,170.72,126.06]
[1748166019045,44.79181043,170.8,170.72,41.9]
[1748166019259,35.13206513,170.76,170.72,41.9]
[1748166019763,1.5683,170.81,170.72,35.13206513]
[1748166019948,35.13206513,170.79,170.73,35.13206513]
[1748166020150,35.13206513,170.78,170.72,35.13206513]
[1748166020947,35.13206513,170.77,170.71,70.19206513]
[1748166021154,35.13206513,170.75,170.71,254.16]
[1748166021348,35.13206513,170.73,170.71,117.96]
[1748166021564,35.13206513,170.74,170.71,117.96]
[1748166021865,35.13206513,170.73,170.72,35.06]
[1748166022045,35.13206513,170.73,170.72,117.96]
[1748166024807,35.13206513,170.73,170.72,82.9]
[1748166024959,35.13206513,170.73,170.72,117.96]
[1748166026360,18.79181043,170.8,170.72,117.96]
[1748166026561,35.13206513,170.73,170.72,117.96]
[1748166026762,18.79181043,170.8,170.72,117.96]
[1748166026964,35.13206513,170.76,170.72,117.96]
[1748166027156,18.79181043,170.8,170.72,117.96]
[1748166027480,35.13206513,170.77,170.73,126.06]
[1748166027656,21.95529899,170.77,170.73,126.06]
[1748166027849,21.95529899,170.76,170.73,126.06]
[1748166028051,21.95529899,170.76,170.73,208.96]
[1748166028448,21.95529899,170.77,170.73,208.96]
[1748166029260,21.95529899,170.76,170.73,208.96]
[1748166029465,21.95529899,170.76,170.73,124.8]
[1748166029662,1.5683,170.81,170.73,124.8]
[1748166029663,21.95529899,170.74,170.73,82.9]
[1748166029884,21.95529899,170.74,170.73,117.96]
[1748166030777,21.95529899,170.74,170.7,82.9]
[1748166030985,26.0,170.79,170.71,35.06]
[1748166031286,21.95529899,170.72,170.71,35.06]
[1748166031462,21.95529899,170.72,170.71,117.96]
[1748166032307,26.0,170.79,170.71,117.96]
[1748166032459,21.95529899,170.72,170.71,117.96]
[1748166032774,26.0,170.79,170.71,117.96]
[1748166032985,40.74710942,170.8,170.71,117.96]
[1748166032986,21.95529899,170.78,170.72,21.95529899]
[1748166033159,21.95529899,170.78,170.72,104.85529899]
[1748166033350,21.95529899,170.77,170.72,104.85529899]
[1748166033563,21.95529899,170.77,170.72,82.9]
[1748166033775,35.1276865,170.76,170.72,82.9]
[1748166034165,35.1276865,170.77,170.72,82.9]
[1748166035373,35.1276865,170.76,170.72,82.9]
[1748166037486,35.1276865,170.76,170.73,126.26]
[1748166038970,35.1276865,170.77,170.73,126.26]
[1748166040089,35.1276865,170.77,170.72,82.9]
[1748166040764,1.5683,170.81,170.72,118.0276865]
[1748166040964,35.1276865,170.77,170.72,118.0276865]
[1748166041176,35.1276865,170.77,170.72,82.9]
[1748166041579,35.1276865,170.76,170.72,82.9]
[1748166042398,35.1276865,170.75,170.72,82.9]
[1748166043081,35.1276865,170.76,170.72,82.9]
[1748166044367,35.1276865,170.77,170.72,118.0276865]
[1748166044567,35.1276865,170.77,170.72,82.9]
[1748166044982,35.1276865,170.76,170.72,82.9]
[1748166046789,35.1276865,170.77,170.72,118.0276865]
[1748166046989,1.5683,170.81,170.76,35.1276865]
[1748166046990,35.1276865,170.81,170.76,35.1276865]
[1748166047312,35.1276865,170.81,170.77,35.06]
[1748166047500,35.1276865,170.8,170.78,126.26]
[1748166047882,35.1276865,170.81,170.78,126.26]
[1748166048185,1.627,170.85,170.78,160.1476865]
[1748166048488,35.1276865,170.86,170.8,35.1276865]
[1748166048671,35.1276865,170.86,170.81,35.06]
[1748166049390,1.76916157,170.9,170.81,35.06]
[1748166049391,35.1276865,170.85,170.81,35.06]
[1748166049772,35.1276865,170.85,170.81,117.96]
[1748166050600,35.1276865,170.82,170.74,89.2276]
[1748166050805,35.1276865,170.77,170.75,35.06]
[1748166050973,35.1276865,170.77,170.75,117.96]
[1748166051498,35.1276865,170.78,170.75,117.96]
[1748166053693,35.1276865,170.77,170.75,117.96]
[1748166054299,35.1276865,170.78,170.75,117.96]
[1748166055094,35.1276865,170.79,170.75,117.96]
[1748166055984,0.14216157,170.83,170.75,117.96]
[1748166056167,35.1276865,170.79,170.75,117.96]
[1748166056785,35.1276865,170.78,170.75,117.96]
[1748166057499,35.1276865,170.78,170.76,126.24]
[1748166057701,35.1276865,170.77,170.76,126.24]
[1748166057898,35.1276865,170.77,170.76,209.14]
[1748166058097,35.1276865,170.77,170.76,244.2]
[1748166058911,35.1276865,170.77,170.76,161.3]
[1748166059109,35.1276865,170.77,170.76,126.24]
[1748166059299,36.86664807,170.77,170.76,161.3]
[1748166059697,23.70672332,170.77,170.76,161.3]
[1748166060802,21.96776175,170.77,170.76,161.3]
[1748166061010,21.96776175,170.78,170.76,161.3]
[1748166061195,21.96776175,170.78,170.76,77.18]
[1748166061717,1.73256157,170.82,170.76,77.18]
[1748166061921,35.12227585,170.78,170.76,160.08]
[1748166062090,35.12227585,170.78,170.76,117.96]
[1748166062286,9.73536863,170.86,170.76,117.96]
[1748166062486,35.12227585,170.84,170.78,35.12227585]
[1748166062800,35.12227585,170.83,170.79,35.06]
[1748166065716,1.5904,170.86,170.79,35.06]
[1748166066016,18.79181043,170.89,170.79,179.08227585]
[1748166066017,35.12227585,170.85,170.79,179.08227585]
[1748166066191,18.79181043,170.89,170.79,179.08227585]
[1748166066391,35.12227585,170.85,170.79,179.08227585]
[1748166066989,18.64964886,170.89,170.79,179.08227585]
[1748166067197,35.12227585,170.85,170.79,179.08227585]
[1748166067517,35.12227585,170.85,170.8,125.34]
[1748166067697,35.12227585,170.84,170.8,208.24]
[1748166068011,18.64964886,170.89,170.8,208.24]
[1748166068192,35.12227585,170.84,170.8,208.24]
[1748166068388,35.12227585,170.84,170.8,124.1]
[1748166068589,35.12227585,170.85,170.8,124.1]
[1748166069205,35.12227585,170.87,170.82,35.12227585]
[1748166069409,35.12227585,170.88,170.83,70.18227585]
[1748166069702,35.12227585,170.88,170.83,153.08227585]
[1748166070107,35.12227585,170.89,170.83,153.08227585]
[1748166070298,18.79181043,170.92,170.87,35.12227585]
[1748166070299,35.12227585,170.92,170.87,35.12227585]
[1748166070511,1.5904,170.95,170.87,35.12227585]
[1748166070512,35.12227585,170.93,170.88,35.06]
[1748166070710,35.12227585,170.92,170.88,35.06]
[1748166071110,1.5904,170.95,170.88,35.06]
[1748166071111,1.5904,170.95,170.88,70.18227585]
[1748166071313,35.12227585,170.94,170.88,153.08227585]
[1748166071491,35.12227585,170.93,170.88,117.96]
[1748166071698,35.12227585,170.94,170.88,153.08227585]
[1748166072013,35.12227585,170.93,170.88,153.08227585]
[1748166072317,35.12227585,170.91,170.88,117.96]
[1748166073415,35.12227585,170.9,170.88,117.96]
[1748166073623,35.12227585,170.91,170.88,117.96]
[1748166073794,35.12227585,170.91,170.89,35.04]
[1748166075223,35.12227585,170.9,170.88,82.9]
[1748166075399,26.35204886,170.92,170.78,6.2545]
[1748166075400,35.12227585,170.89,170.79,35.12227585]
[1748166075601,35.12227585,170.85,170.8,96.16227585]
[1748166075804,35.12227585,170.85,170.8,143.94]
[1748166076107,35.12227585,170.85,170.8,179.06227585]
[1748166076717,35.12227585,170.86,170.8,179.06227585]
[1748166076998,35.12227585,170.89,170.84,35.12227585]
[1748166077301,35.12227585,170.9,170.85,70.16227585]
[1748166077494,1.5904,170.92,170.86,125.28]
[1748166077697,35.12227585,170.93,170.87,35.12227585]
[1748166077921,35.12227585,170.91,170.87,82.9]
[1748166078121,35.12227585,170.92,170.87,82.9]
[1748166078436,35.12227585,170.93,170.87,118.02227585]
[1748166079640,35.12227585,170.94,170.88,35.12227585]
[1748166079799,35.12227585,170.94,170.89,35.04]
[1748166080214,35.12227585,170.95,170.89,153.06227585]
[1748166080931,1.6211,171.0,170.93,61.12227585]
[1748166081146,35.12227585,170.97,170.94,35.04]
[1748166081354,35.12227585,170.98,170.94,35.04]
[1748166081933,18.79181043,171.05,170.96,26.0]
[1748166082099,6.2261,171.06,170.96,26.0]
[1748166082100,35.12227585,171.03,170.97,35.12227585]
[1748166082300,35.12227585,171.03,170.98,35.04]
[1748166082505,35.12227585,171.01,170.98,35.04]
[1748166082805,35.12227585,171.02,170.98,35.04]
[1748166083227,6.2261,171.06,170.98,35.04]
[1748166083228,35.12227585,171.03,170.98,35.04]
[1748166083429,6.2261,171.06,170.98,70.16227585]
[1748166083736,35.12227585,171.04,170.99,35.12227585]
[1748166084121,1.6211,171.08,170.99,35.12227585]
[1748166084436,35.12227585,171.04,170.99,35.12227585]
[1748166084643,35.12227585,171.05,170.99,35.12227585]
[1748166084802,35.12227585,171.05,170.98,117.94]
[1748166084803,35.12227585,171.06,171.0,35.12227585]
[1748166085002,1.6211,171.08,171.0,35.12227585]
[1748166085425,35.12227585,171.05,171.0,35.12227585]
[1748166085844,1.6211,171.08,171.0,35.12227585]
[1748166086032,35.12227585,171.05,171.0,35.12227585]
[1748166086933,35.12227585,171.05,171.01,26.0]
[1748166087422,1.6211,171.08,171.01,61.12227585]
[1748166087631,35.12227585,171.06,171.02,125.2]
[1748166087809,35.12227585,171.06,171.03,35.02]
[1748166088216,35.12227585,171.05,171.03,35.02]
[1748166088419,35.12227585,171.04,171.03,35.02]
[1748166089432,18.79181043,171.07,171.03,35.02]
[1748166089630,35.12227585,171.04,171.03,35.02]
[1748166090011,1.6211,171.08,171.03,35.02]
[1748166090213,1.5827,171.14,171.04,35.12227585]
[1748166090422,35.12227585,171.1,171.04,61.12227585]
[1748166091306,1.5827,171.14,171.04,61.12227585]
[1748166091511,35.12227585,171.09,171.04,61.12227585]
[1748166092229,35.12227585,171.09,171.04,26.0]
[1748166092935,35.12227585,171.07,171.03,117.92]
[1748166093235,35.12227585,171.06,171.03,117.92]
[1748166093418,35.12227585,171.07,171.03,117.92]
[1748166093615,18.79181043,171.12,171.03,117.92]
[1748166093815,35.12227585,171.07,171.03,117.92]
[1748166094014,18.79181043,171.12,171.03,117.92]
[1748166094210,35.12227585,171.05,171.03,82.9]
[1748166094531,53.91408628,171.12,170.98,82.9]
[1748166094532,35.01303999,171.04,170.98,82.9]
[1748166094715,35.01303999,171.03,170.99,35.02]
[1748166095027,18.64964886,171.08,170.99,61.02]
[1748166095028,35.01303999,171.02,170.99,61.02]
[1748166095206,35.01303999,171.03,170.99,35.02]
[1748166095403,35.01303999,171.0,170.99,35.02]
[1748166095721,35.01303999,171.01,170.99,35.02]
[1748166095906,35.01303999,171.0,170.99,35.02]
[1748166096222,35.01303999,171.01,170.99,35.0]
[1748166096430,18.64964886,171.05,170.99,35.0]
[1748166096606,35.01303999,171.01,170.99,35.0]
[1748166097536,35.01303999,171.01,171.0,124.62]
[1748166097836,35.01303999,171.02,171.0,124.62]
[1748166098417,1.5522,171.06,171.0,124.62]
[1748166098731,35.01303999,171.05,171.0,40.6]
[1748166098931,1.5522,171.06,171.0,40.6]
[1748166098932,35.01303999,171.06,171.0,40.6]
[1748166099105,26.0,171.09,170.99,35.0]
[1748166099306,35.01303999,171.05,170.99,35.0]
[1748166099818,35.01303999,171.04,170.99,35.0]